[Event "Titled Tuesday Blitz November 07 Early 2023"]
[White "Zaksaite, Salomeja"]
[Black "Krzywda, Andrzej"]
[WhiteFideId "12801496"]
[BlackFideId "1114565"]
[WhiteElo "2306"]
[BlackElo "2511"]
[Result "1-0"]
[Round "2"]
[TimeControl "180+1"]
[Date "2023.11.07"]
[WhiteClock "0:00:12"]
[BlackClock "0:00:33"]
[Board "185"]

1. e4 {[%clk 0:02:58]}  e5 {[%clk 0:03:00]} 2. Nf3 {[%clk 0:02:56]}  Nf6 {[%clk 0:03:00]} 3. Nxe5 {[%clk 0:02:35]}  d6 {[%clk 0:03:00]} 4. Nf3 {[%clk 0:02:35]}  Nxe4 {[%clk 0:03:01]} 5. Qe2 {[%clk 0:02:35]}  Qe7 {[%clk 0:03:01]} 6. d3 {[%clk 0:02:36]}  Nf6 {[%clk 0:03:01]} 7. Bg5 {[%clk 0:02:36]}  Qxe2+ {[%clk 0:03:00]} 8. Bxe2 {[%clk 0:02:37]}  Be7 {[%clk 0:03:00]} 9. Nc3 {[%clk 0:02:36]}  h6 {[%clk 0:03:00]} 10. Bh4 {[%clk 0:02:35]}  Nc6 {[%clk 0:03:00]} 11. Nb5 {[%clk 0:02:29]}  Kd8 {[%clk 0:02:40]} 12. O-O-O {[%clk 0:02:26]}  g5 {[%clk 0:02:39]} 13. Bg3 {[%clk 0:02:25]}  Bd7 {[%clk 0:02:39]} 14. h4 {[%clk 0:02:12]}  Rg8 {[%clk 0:02:31]} 15. hxg5 {[%clk 0:02:10]}  hxg5 {[%clk 0:02:32]} 16. Rde1 {[%clk 0:01:54]}  a6 {[%clk 0:02:27]} 17. Nbd4 {[%clk 0:01:54]}  Nxd4 {[%clk 0:02:28]} 18. Nxd4 {[%clk 0:01:54]}  c5 {[%clk 0:02:28]} 19. Nf3 {[%clk 0:01:25]}  Be6 {[%clk 0:02:27]} 20. d4 {[%clk 0:01:18]}  Ne4 {[%clk 0:02:17]} 21. dxc5 {[%clk 0:01:15]}  Nxg3 {[%clk 0:02:10]} 22. fxg3 {[%clk 0:01:16]}  dxc5 {[%clk 0:02:09]} 23. Nd2 {[%clk 0:01:08]}  Kc7 {[%clk 0:02:01]} 24. Bc4 {[%clk 0:01:04]}  Bxc4 {[%clk 0:01:43]} 25. Nxc4 {[%clk 0:00:40]}  Rae8 {[%clk 0:01:42]} 26. Rh7 {[%clk 0:00:33]}  Rgf8 {[%clk 0:01:41]} 27. g4 {[%clk 0:00:30]}  b5 {[%clk 0:01:29]} 28. Ne5 {[%clk 0:00:26]}  Bd6 {[%clk 0:01:28]} 29. Nf3 {[%clk 0:00:22]}  Bf4+ {[%clk 0:01:27]} 30. Kd1 {[%clk 0:00:16]}  Rd8+ {[%clk 0:01:25]} 31. Ke2 {[%clk 0:00:16]}  Rfe8+ {[%clk 0:01:26]} 32. Kf1 {[%clk 0:00:16]}  Rxe1+ {[%clk 0:01:25]} 33. Kxe1 {[%clk 0:00:15]}  Rd7 {[%clk 0:01:21]} 34. Kf2 {[%clk 0:00:15]}  Kc6 {[%clk 0:01:15]} 35. Rg7 {[%clk 0:00:13]}  c4 {[%clk 0:00:59]} 36. g3 {[%clk 0:00:12]}  Bc1 {[%clk 0:00:58]} 37. Ne5+ {[%clk 0:00:11]}  Kd6 {[%clk 0:00:57]} 38. Nxd7 {[%clk 0:00:12]}  Kxd7 {[%clk 0:00:58]} 39. Rxf7+ {[%clk 0:00:09]}  Ke6 {[%clk 0:00:58]} 40. Ra7 {[%clk 0:00:08]}  Bxb2 {[%clk 0:00:58]} 41. Rxa6+ {[%clk 0:00:09]}  Kd5 {[%clk 0:00:59]} 42. Rg6 {[%clk 0:00:03]}  Bc1 {[%clk 0:00:59]} 43. Ke2 {[%clk 0:00:03]}  Kc5 {[%clk 0:00:56]} 44. Kd1 {[%clk 0:00:02]}  Be3 {[%clk 0:00:56]} 45. Ke2 {[%clk 0:00:03]}  Bc1 {[%clk 0:00:56]} 46. Kd1 {[%clk 0:00:04]}  Be3 {[%clk 0:00:55]} 47. Re6 {[%clk 0:00:04]}  Bd4 {[%clk 0:00:52]} 48. Ke2 {[%clk 0:00:04]}  Kb4 {[%clk 0:00:51]} 49. Rg6 {[%clk 0:00:03]}  Kc3 {[%clk 0:00:50]} 50. Rxg5 {[%clk 0:00:03]}  b4 {[%clk 0:00:50]} 51. Rd5 {[%clk 0:00:02]}  Bg7 {[%clk 0:00:47]} 52. Kd1 {[%clk 0:00:01]}  Kb2 {[%clk 0:00:43]} 53. Ra5 {[%clk 0:00:01]}  Bc3 {[%clk 0:00:30]} 54. g5 {[%clk 0:00:01]}  b3 {[%clk 0:00:30]} 55. axb3 {[%clk 0:00:01]}  Bxa5 {[%clk 0:00:29]} 56. bxc4 {[%clk 0:00:01]}  Bc3 {[%clk 0:00:28]} 57. g6 {[%clk 0:00:01]}  Bg7 {[%clk 0:00:29]} 58. c5 {[%clk 0:00:02]}  Kc3 {[%clk 0:00:29]} 59. c6 {[%clk 0:00:03]}  Be5 {[%clk 0:00:29]} 60. c7 {[%clk 0:00:03]}  Bxc7 {[%clk 0:00:29]} 61. g7 {[%clk 0:00:04]}  Bxg3 {[%clk 0:00:30]} 62. g8=Q {[%clk 0:00:05]}  Be5 {[%clk 0:00:31]} 63. Qc8+ {[%clk 0:00:05]}  Kd4 {[%clk 0:00:31]} 64. Qe6 {[%clk 0:00:05]}  Ke4 {[%clk 0:00:31]} 65. Qf7 {[%clk 0:00:06]}  Kd4 {[%clk 0:00:31]} 66. Ke2 {[%clk 0:00:07]}  Ke4 {[%clk 0:00:32]} 67. Qe8 {[%clk 0:00:08]}  Kd4 {[%clk 0:00:32]} 68. Qc8 {[%clk 0:00:09]}  Ke4 {[%clk 0:00:32]} 69. Qd7 {[%clk 0:00:10]}  Bd4 {[%clk 0:00:32]} 70. Qc6+ {[%clk 0:00:11]}  Ke5 {[%clk 0:00:32]} 71. c4 {[%clk 0:00:11]}  Bc3 {[%clk 0:00:32]} 72. Qd5+ {[%clk 0:00:12]}  Kf6 {[%clk 0:00:32]} 73. Kd3 {[%clk 0:00:12]}  Bb2 {[%clk 0:00:32]} 74. Ke4 {[%clk 0:00:13]}  Ke7 {[%clk 0:00:30]} 75. c5 {[%clk 0:00:13]}  Ke8 {[%clk 0:00:30]} 76. c6 {[%clk 0:00:14]}  Bf6 {[%clk 0:00:30]} 77. Qd7+ {[%clk 0:00:14]}  Kf8 {[%clk 0:00:30]} 78. c7 {[%clk 0:00:14]}  Be7 {[%clk 0:00:31]} 79. c8=Q+ {[%clk 0:00:13]}  Kf7 {[%clk 0:00:32]} 80. Qc4+ {[%clk 0:00:12]}  Kg6 {[%clk 0:00:32]} 81. Qce6+ {[%clk 0:00:12]}  Kh7 {[%clk 0:00:32]} 82. Qdxe7+ {[%clk 0:00:12]}  Kh8 {[%clk 0:00:33]} 83. Qc8# {[%clk 0:00:12]} 1-0


[Site "https://www.chess.com"]

[Event "Titled Tuesday Blitz November 07 Early 2023"]
[White "arenal72"]
[Black "Rasmussen, Casper"]
[BlackFideId "1402005"]
[WhiteElo "2508"]
[BlackElo "2301"]
[Result "1-0"]
[Round "2"]
[TimeControl "180+1"]
[Date "2023.11.07"]
[WhiteClock "0:01:16"]
[BlackClock "0:01:50"]
[Board "187"]

1. Nf3 {[%clk 0:03:00]}  Nf6 {[%clk 0:02:58]} 2. g3 {[%clk 0:03:00]}  c5 {[%clk 0:02:56]} 3. Bg2 {[%clk 0:03:00]}  Nc6 {[%clk 0:02:56]} 4. O-O {[%clk 0:02:59]}  d6 {[%clk 0:02:55]} 5. d4 {[%clk 0:02:50]}  cxd4 {[%clk 0:02:54]} 6. Nxd4 {[%clk 0:02:49]}  Bd7 {[%clk 0:02:53]} 7. c4 {[%clk 0:02:48]}  g6 {[%clk 0:02:53]} 8. Nc3 {[%clk 0:02:47]}  Bg7 {[%clk 0:02:54]} 9. h3 {[%clk 0:02:41]}  O-O {[%clk 0:02:54]} 10. Be3 {[%clk 0:02:39]}  a6 {[%clk 0:02:53]} 11. Qd2 {[%clk 0:02:24]}  Ne5 {[%clk 0:02:51]} 12. b3 {[%clk 0:02:22]}  Rb8 {[%clk 0:02:48]} 13. a4 {[%clk 0:02:16]}  h5 {[%clk 0:02:24]} 14. Rfd1 {[%clk 0:02:08]}  h4 {[%clk 0:02:21]} 15. g4 {[%clk 0:02:05]}  Nc6 {[%clk 0:02:09]} 16. f4 {[%clk 0:01:51]}  Nxd4 {[%clk 0:02:04]} 17. Bxd4 {[%clk 0:01:51]}  Bc6 {[%clk 0:02:05]} 18. e4 {[%clk 0:01:42]}  b5 {[%clk 0:02:05]} 19. cxb5 {[%clk 0:01:36]}  axb5 {[%clk 0:02:05]} 20. a5 {[%clk 0:01:36]}  b4 {[%clk 0:02:03]} 21. Nd5 {[%clk 0:01:36]}  Bxd5 {[%clk 0:01:56]} 22. exd5 {[%clk 0:01:35]}  Rb5 {[%clk 0:01:56]} 23. a6 {[%clk 0:01:28]}  Ra5 {[%clk 0:01:55]} 24. Qxb4 {[%clk 0:01:24]}  Rxa1 {[%clk 0:01:54]} 25. Rxa1 {[%clk 0:01:25]}  Nd7 {[%clk 0:01:54]} 26. Bxg7 {[%clk 0:01:22]}  Kxg7 {[%clk 0:01:55]} 27. a7 {[%clk 0:01:21]}  Qb6+ {[%clk 0:01:54]} 28. Qxb6 {[%clk 0:01:18]}  Nxb6 {[%clk 0:01:55]} 29. Ra6 {[%clk 0:01:16]}  Na8 {[%clk 0:01:50]} 30. b4 {[%clk 0:01:16]} 1-0


[Site "https://www.chess.com"]

[Event "Titled Tuesday Blitz November 07 Early 2023"]
[White "Buchenau, Frank"]
[Black "Biernacki, Mark"]
[WhiteFideId "4604350"]
[BlackFideId "2082322"]
[WhiteElo "2504"]
[BlackElo "2293"]
[Result "0-1"]
[Round "2"]
[TimeControl "180+1"]
[Date "2023.11.07"]
[WhiteClock "0:00:00"]
[BlackClock "0:00:09"]
[Board "191"]

1. e4 {[%clk 0:02:57]}  c6 {[%clk 0:02:57]} 2. Nf3 {[%clk 0:02:57]}  d5 {[%clk 0:02:58]} 3. Nc3 {[%clk 0:02:57]}  dxe4 {[%clk 0:02:56]} 4. Nxe4 {[%clk 0:02:57]}  Nf6 {[%clk 0:02:56]} 5. Ng3 {[%clk 0:02:57]}  Bg4 {[%clk 0:02:51]} 6. h3 {[%clk 0:02:54]}  Bxf3 {[%clk 0:02:51]} 7. Qxf3 {[%clk 0:02:54]}  e6 {[%clk 0:02:52]} 8. b3 {[%clk 0:02:50]}  Be7 {[%clk 0:02:52]} 9. Bb2 {[%clk 0:02:50]}  O-O {[%clk 0:02:51]} 10. O-O-O {[%clk 0:02:44]}  a5 {[%clk 0:02:51]} 11. a4 {[%clk 0:02:40]}  Nbd7 {[%clk 0:02:50]} 12. d4 {[%clk 0:02:35]}  Qc7 {[%clk 0:02:49]} 13. Bd3 {[%clk 0:02:33]}  Nd5 {[%clk 0:02:44]} 14. Rhe1 {[%clk 0:02:05]}  Nb4 {[%clk 0:02:33]} 15. Bf1 {[%clk 0:01:51]}  Nf6 {[%clk 0:02:24]} 16. c3 {[%clk 0:01:45]}  Nbd5 {[%clk 0:02:24]} 17. Kb1 {[%clk 0:01:41]}  Rab8 {[%clk 0:02:24]} 18. c4 {[%clk 0:01:38]}  Nb4 {[%clk 0:02:24]} 19. Ne2 {[%clk 0:01:18]}  b5 {[%clk 0:02:16]} 20. Nc3 {[%clk 0:01:08]}  bxa4 {[%clk 0:02:12]} 21. Nxa4 {[%clk 0:01:07]}  Rfd8 {[%clk 0:01:58]} 22. g4 {[%clk 0:01:06]}  Nd7 {[%clk 0:01:26]} 23. d5 {[%clk 0:00:56]}  cxd5 {[%clk 0:01:20]} 24. cxd5 {[%clk 0:00:52]}  Qc2+ {[%clk 0:00:58]} 25. Ka1 {[%clk 0:00:52]}  Qg6 {[%clk 0:00:58]} 26. Bd3 {[%clk 0:00:34]}  Nxd3 {[%clk 0:00:52]} 27. Qxd3 {[%clk 0:00:34]}  Nc5 {[%clk 0:00:50]} 28. Nxc5 {[%clk 0:00:28]}  Bxc5 {[%clk 0:00:49]} 29. Qxg6 {[%clk 0:00:26]}  hxg6 {[%clk 0:00:48]} 30. dxe6 {[%clk 0:00:26]}  Rxd1+ {[%clk 0:00:47]} 31. Rxd1 {[%clk 0:00:25]}  fxe6 {[%clk 0:00:46]} 32. Rd7 {[%clk 0:00:21]}  Rxb3 {[%clk 0:00:38]} 33. Rxg7+ {[%clk 0:00:19]}  Kf8 {[%clk 0:00:38]} 34. Rc7 {[%clk 0:00:19]}  Bxf2 {[%clk 0:00:36]} 35. Ka2 {[%clk 0:00:17]}  Rd3 {[%clk 0:00:33]} 36. Be5 {[%clk 0:00:12]}  Rxh3 {[%clk 0:00:26]} 37. Rc6 {[%clk 0:00:11]}  Ke7 {[%clk 0:00:25]} 38. Rc7+ {[%clk 0:00:11]}  Ke8 {[%clk 0:00:25]} 39. Rc8+ {[%clk 0:00:11]}  Kd7 {[%clk 0:00:25]} 40. Rc7+ {[%clk 0:00:11]}  Kd8 {[%clk 0:00:25]} 41. Rg7 {[%clk 0:00:11]}  Bc5 {[%clk 0:00:18]} 42. Rxg6 {[%clk 0:00:10]}  Kd7 {[%clk 0:00:18]} 43. Rg7+ {[%clk 0:00:09]}  Kc6 {[%clk 0:00:19]} 44. g5 {[%clk 0:00:09]}  Kd5 {[%clk 0:00:19]} 45. Bf6 {[%clk 0:00:10]}  Rh2+ {[%clk 0:00:19]} 46. Kb3 {[%clk 0:00:09]}  Rh3+ {[%clk 0:00:18]} 47. Ka2 {[%clk 0:00:06]}  a4 {[%clk 0:00:17]} 48. g6 {[%clk 0:00:06]}  Rh2+ {[%clk 0:00:16]} 49. Kb1 {[%clk 0:00:05]}  a3 {[%clk 0:00:16]} 50. Rc7 {[%clk 0:00:04]}  a2+ {[%clk 0:00:15]} 51. Kc1 {[%clk 0:00:04]}  Ba3+ {[%clk 0:00:14]} 52. Kd1 {[%clk 0:00:04]}  a1=Q+ {[%clk 0:00:13]} 53. Bxa1 {[%clk 0:00:03]}  Rh1+ {[%clk 0:00:14]} 54. Ke2 {[%clk 0:00:03]}  Rxa1 {[%clk 0:00:14]} 55. Kf2 {[%clk 0:00:02]}  Bc5+ {[%clk 0:00:10]} 56. Kf3 {[%clk 0:00:00]}  Rg1 {[%clk 0:00:09]} 0-1


[Site "https://www.chess.com"]

[Event "Titled Tuesday Blitz November 07 Early 2023"]
[White "Garrido, Denis"]
[Black "Kubicka, Anna"]
[WhiteFideId "601217"]
[BlackFideId "1152254"]
[WhiteElo "2288"]
[BlackElo "2502"]
[Result "1-0"]
[Round "2"]
[TimeControl "180+1"]
[Date "2023.11.07"]
[WhiteClock "0:01:03"]
[BlackClock "0:00:07"]
[Board "193"]

1. e4 {[%clk 0:03:00]}  c5 {[%clk 0:02:59]} 2. Nf3 {[%clk 0:03:00]}  d6 {[%clk 0:02:59]} 3. d4 {[%clk 0:03:00]}  cxd4 {[%clk 0:03:00]} 4. Nxd4 {[%clk 0:03:00]}  Nf6 {[%clk 0:03:00]} 5. Nc3 {[%clk 0:03:00]}  a6 {[%clk 0:03:01]} 6. Nf3 {[%clk 0:03:01]}  g6 {[%clk 0:03:00]} 7. e5 {[%clk 0:03:01]}  Ng4 {[%clk 0:02:50]} 8. exd6 {[%clk 0:02:58]}  Qxd6 {[%clk 0:02:50]} 9. Qxd6 {[%clk 0:02:58]}  exd6 {[%clk 0:02:51]} 10. Bf4 {[%clk 0:02:53]}  Nc6 {[%clk 0:02:48]} 11. Nd5 {[%clk 0:02:45]}  Rb8 {[%clk 0:02:39]} 12. h3 {[%clk 0:02:30]}  Nge5 {[%clk 0:02:39]} 13. Be2 {[%clk 0:02:30]}  Bg7 {[%clk 0:02:35]} 14. O-O-O {[%clk 0:02:28]}  O-O {[%clk 0:02:32]} 15. Rhe1 {[%clk 0:02:22]}  Be6 {[%clk 0:02:22]} 16. Be3 {[%clk 0:02:01]}  Nxf3 {[%clk 0:02:11]} 17. Bxf3 {[%clk 0:02:00]}  Ne5 {[%clk 0:02:11]} 18. Be2 {[%clk 0:01:57]}  Rfd8 {[%clk 0:02:08]} 19. Bb6 {[%clk 0:01:56]}  Re8 {[%clk 0:01:59]} 20. Nc7 {[%clk 0:01:52]}  Re7 {[%clk 0:01:56]} 21. Rxd6 {[%clk 0:01:49]}  Nd7 {[%clk 0:01:36]} 22. Nxe6 {[%clk 0:01:48]}  fxe6 {[%clk 0:01:29]} 23. Be3 {[%clk 0:01:44]}  e5 {[%clk 0:01:18]} 24. Bc4+ {[%clk 0:01:43]}  Kh8 {[%clk 0:01:16]} 25. Bg5 {[%clk 0:01:43]}  Rbe8 {[%clk 0:01:05]} 26. Bxe7 {[%clk 0:01:42]}  Rxe7 {[%clk 0:01:06]} 27. Red1 {[%clk 0:01:39]}  Bh6+ {[%clk 0:01:00]} 28. Kb1 {[%clk 0:01:39]}  Nc5 {[%clk 0:00:59]} 29. a3 {[%clk 0:01:37]}  b5 {[%clk 0:00:58]} 30. Bd5 {[%clk 0:01:36]}  e4 {[%clk 0:00:52]} 31. Rc6 {[%clk 0:01:35]}  e3 {[%clk 0:00:35]} 32. fxe3 {[%clk 0:01:29]}  Bxe3 {[%clk 0:00:36]} 33. Rc8+ {[%clk 0:01:29]}  Kg7 {[%clk 0:00:36]} 34. Bf3 {[%clk 0:01:21]}  Na4 {[%clk 0:00:31]} 35. Rc6 {[%clk 0:01:18]}  a5 {[%clk 0:00:27]} 36. Ra6 {[%clk 0:01:14]}  Bg5 {[%clk 0:00:20]} 37. Rxa5 {[%clk 0:01:11]}  Bf6 {[%clk 0:00:20]} 38. Rxb5 {[%clk 0:01:10]}  Bxb2 {[%clk 0:00:18]} 39. Rxb2 {[%clk 0:01:09]}  Nc3+ {[%clk 0:00:18]} 40. Kc1 {[%clk 0:01:09]}  Nxd1 {[%clk 0:00:18]} 41. Kxd1 {[%clk 0:01:09]}  Re3 {[%clk 0:00:19]} 42. Rb3 {[%clk 0:01:09]}  Re5 {[%clk 0:00:19]} 43. a4 {[%clk 0:01:09]}  Ra5 {[%clk 0:00:19]} 44. Bc6 {[%clk 0:01:09]}  Kf6 {[%clk 0:00:19]} 45. Bb5 {[%clk 0:01:09]}  Ke5 {[%clk 0:00:19]} 46. c4 {[%clk 0:01:10]}  Kd4 {[%clk 0:00:20]} 47. Rf3 {[%clk 0:01:10]}  Ra7 {[%clk 0:00:19]} 48. Kd2 {[%clk 0:01:09]}  Re7 {[%clk 0:00:19]} 49. a5 {[%clk 0:01:09]}  h5 {[%clk 0:00:16]} 50. a6 {[%clk 0:01:09]}  h4 {[%clk 0:00:16]} 51. Rf6 {[%clk 0:01:09]}  g5 {[%clk 0:00:14]} 52. Rg6 {[%clk 0:01:08]}  Rf7 {[%clk 0:00:14]} 53. Rxg5 {[%clk 0:01:07]}  Rf2+ {[%clk 0:00:15]} 54. Ke1 {[%clk 0:01:08]}  Ra2 {[%clk 0:00:16]} 55. Rd5+ {[%clk 0:01:06]}  Ke3 {[%clk 0:00:16]} 56. Re5+ {[%clk 0:01:04]}  Kf4 {[%clk 0:00:17]} 57. Re2 {[%clk 0:01:04]}  Ra3 {[%clk 0:00:14]} 58. Kf2 {[%clk 0:01:04]}  Ra1 {[%clk 0:00:12]} 59. c5 {[%clk 0:01:03]}  Ra5 {[%clk 0:00:07]} 60. c6 {[%clk 0:01:03]} 1-0


[Site "https://www.chess.com"]

[Event "Titled Tuesday Blitz November 07 Early 2023"]
[White "Martin, Lewis"]
[Black "Khater, Sherif"]
[WhiteFideId "410551"]
[BlackFideId "2034280"]
[WhiteElo "2288"]
[BlackElo "2502"]
[Result "0-1"]
[Round "2"]
[TimeControl "180+1"]
[Date "2023.11.07"]
[WhiteClock "0:00:38"]
[BlackClock "0:00:28"]
[Board "194"]

1. c4 {[%clk 0:03:00]}  c5 {[%clk 0:02:59]} 2. g3 {[%clk 0:02:57]}  Nc6 {[%clk 0:02:56]} 3. Bg2 {[%clk 0:02:56]}  Nf6 {[%clk 0:02:56]} 4. Nc3 {[%clk 0:02:55]}  g6 {[%clk 0:02:55]} 5. e4 {[%clk 0:02:55]}  d6 {[%clk 0:02:55]} 6. Nge2 {[%clk 0:02:54]}  Bg7 {[%clk 0:02:56]} 7. d3 {[%clk 0:02:53]}  O-O {[%clk 0:02:56]} 8. O-O {[%clk 0:02:53]}  Rb8 {[%clk 0:02:57]} 9. h3 {[%clk 0:02:49]}  e5 {[%clk 0:02:57]} 10. Be3 {[%clk 0:02:48]}  Nd4 {[%clk 0:02:57]} 11. Qd2 {[%clk 0:02:46]}  Bxh3 {[%clk 0:02:47]} 12. Bh6 {[%clk 0:02:29]}  Qd7 {[%clk 0:02:30]} 13. Bxg7 {[%clk 0:02:28]}  Kxg7 {[%clk 0:02:29]} 14. f4 {[%clk 0:02:25]}  Bxg2 {[%clk 0:02:27]} 15. Kxg2 {[%clk 0:02:24]}  Ng4 {[%clk 0:02:18]} 16. Nd5 {[%clk 0:02:18]}  f5 {[%clk 0:02:13]} 17. fxe5 {[%clk 0:02:06]}  dxe5 {[%clk 0:02:11]} 18. Nxd4 {[%clk 0:02:04]}  cxd4 {[%clk 0:02:10]} 19. exf5 {[%clk 0:01:48]}  gxf5 {[%clk 0:02:03]} 20. Qg5+ {[%clk 0:01:45]}  Kh8 {[%clk 0:02:02]} 21. Rae1 {[%clk 0:01:39]}  b5 {[%clk 0:01:52]} 22. b3 {[%clk 0:01:37]}  bxc4 {[%clk 0:01:52]} 23. dxc4 {[%clk 0:01:36]}  Rf7 {[%clk 0:01:43]} 24. Rf3 {[%clk 0:01:25]}  Rg8 {[%clk 0:01:37]} 25. Qh5 {[%clk 0:01:23]}  f4 {[%clk 0:01:27]} 26. Rh1 {[%clk 0:01:08]}  Qe6 {[%clk 0:01:11]} 27. Rh4 {[%clk 0:01:05]}  Ne3+ {[%clk 0:01:04]} 28. Nxe3 {[%clk 0:01:00]}  dxe3 {[%clk 0:01:05]} 29. g4 {[%clk 0:00:55]}  Rfg7 {[%clk 0:00:59]} 30. Rfh3 {[%clk 0:00:54]}  Rxg4+ {[%clk 0:00:51]} 31. Kf3 {[%clk 0:00:53]}  Qc6+ {[%clk 0:00:37]} 32. Ke2 {[%clk 0:00:51]}  Rg2+ {[%clk 0:00:38]} 33. Kd3 {[%clk 0:00:51]}  e4+ {[%clk 0:00:33]} 34. Kc3 {[%clk 0:00:47]}  Qf6+ {[%clk 0:00:29]} 35. Kb4 {[%clk 0:00:46]}  a5+ {[%clk 0:00:29]} 36. Kb5 {[%clk 0:00:38]}  R2g5+ {[%clk 0:00:28]} 0-1


[Site "https://www.chess.com"]

[Event "Titled Tuesday Blitz November 07 Early 2023"]
[White "Lund, Gunnar"]
[Black "ilya2700"]
[WhiteFideId "1520814"]
[WhiteElo "2501"]
[BlackElo "2286"]
[Result "0-1"]
[Round "2"]
[TimeControl "180+1"]
[Date "2023.11.07"]
[WhiteClock "0:00:06"]
[BlackClock "0:00:09"]
[Board "195"]

1. d4 {[%clk 0:03:00]}  Nf6 {[%clk 0:02:59]} 2. Nf3 {[%clk 0:03:00]}  g6 {[%clk 0:02:58]} 3. c4 {[%clk 0:03:01]}  Bg7 {[%clk 0:02:58]} 4. Nc3 {[%clk 0:03:01]}  O-O {[%clk 0:02:59]} 5. e3 {[%clk 0:03:02]}  d6 {[%clk 0:02:56]} 6. Be2 {[%clk 0:03:02]}  Nbd7 {[%clk 0:02:56]} 7. O-O {[%clk 0:03:02]}  e5 {[%clk 0:02:56]} 8. b3 {[%clk 0:03:03]}  c6 {[%clk 0:02:55]} 9. Bb2 {[%clk 0:03:03]}  Qc7 {[%clk 0:02:55]} 10. Qc2 {[%clk 0:03:03]}  b6 {[%clk 0:02:52]} 11. Rad1 {[%clk 0:03:03]}  Bb7 {[%clk 0:02:52]} 12. d5 {[%clk 0:03:04]}  cxd5 {[%clk 0:02:51]} 13. cxd5 {[%clk 0:03:04]}  Nxd5 {[%clk 0:02:51]} 14. Qd2 {[%clk 0:03:04]}  Nxc3 {[%clk 0:02:51]} 15. Bxc3 {[%clk 0:03:05]}  d5 {[%clk 0:02:51]} 16. Rc1 {[%clk 0:03:01]}  Nc5 {[%clk 0:02:50]} 17. Qb2 {[%clk 0:02:52]}  Rfe8 {[%clk 0:02:43]} 18. Bb5 {[%clk 0:02:49]}  Bc6 {[%clk 0:02:22]} 19. Bxc6 {[%clk 0:02:47]}  Qxc6 {[%clk 0:02:22]} 20. Bxe5 {[%clk 0:02:47]}  Bxe5 {[%clk 0:02:20]} 21. Nxe5 {[%clk 0:02:48]}  Qe6 {[%clk 0:02:21]} 22. b4 {[%clk 0:02:36]}  Qxe5 {[%clk 0:02:00]} 23. Qxe5 {[%clk 0:02:35]}  Rxe5 {[%clk 0:02:01]} 24. bxc5 {[%clk 0:02:36]}  bxc5 {[%clk 0:02:01]} 25. Rxc5 {[%clk 0:02:37]}  Rb8 {[%clk 0:02:00]} 26. Ra5 {[%clk 0:02:36]}  Rb7 {[%clk 0:01:58]} 27. Rd1 {[%clk 0:02:35]}  Kf8 {[%clk 0:01:49]} 28. h4 {[%clk 0:02:33]}  Rd7 {[%clk 0:01:48]} 29. Rd4 {[%clk 0:02:32]}  Ke7 {[%clk 0:01:48]} 30. g3 {[%clk 0:02:28]}  Ke6 {[%clk 0:01:45]} 31. Kf1 {[%clk 0:02:24]}  Re4 {[%clk 0:01:35]} 32. Rd3 {[%clk 0:02:10]}  Rc4 {[%clk 0:01:25]} 33. Rda3 {[%clk 0:02:09]}  Rcc7 {[%clk 0:01:24]} 34. Ra6+ {[%clk 0:02:08]}  Ke7 {[%clk 0:01:23]} 35. Rb3 {[%clk 0:02:02]}  d4 {[%clk 0:01:20]} 36. exd4 {[%clk 0:02:01]}  Rxd4 {[%clk 0:01:21]} 37. Rba3 {[%clk 0:02:01]}  Rdd7 {[%clk 0:01:20]} 38. Kg2 {[%clk 0:02:02]}  Kd8 {[%clk 0:01:15]} 39. R3a5 {[%clk 0:02:00]}  Kc8 {[%clk 0:01:15]} 40. h5 {[%clk 0:01:56]}  Kb8 {[%clk 0:01:14]} 41. Rf6 {[%clk 0:01:51]}  Kb7 {[%clk 0:01:09]} 42. Rb5+ {[%clk 0:01:49]}  Kc8 {[%clk 0:01:04]} 43. h6 {[%clk 0:01:46]}  Rc2 {[%clk 0:01:02]} 44. a4 {[%clk 0:01:34]}  Kd8 {[%clk 0:00:44]} 45. Rb3 {[%clk 0:01:22]}  Ra2 {[%clk 0:00:42]} 46. Rb4 {[%clk 0:01:23]}  Ke7 {[%clk 0:00:41]} 47. Rbf4 {[%clk 0:01:23]}  Ke8 {[%clk 0:00:41]} 48. Rc6 {[%clk 0:01:22]}  f5 {[%clk 0:00:39]} 49. Rc8+ {[%clk 0:01:19]}  Kf7 {[%clk 0:00:37]} 50. Rh8 {[%clk 0:01:17]}  Kf6 {[%clk 0:00:37]} 51. Rb8 {[%clk 0:00:46]}  Kg5 {[%clk 0:00:35]} 52. Rb5 {[%clk 0:00:45]}  Kxh6 {[%clk 0:00:32]} 53. g4 {[%clk 0:00:46]}  Kg5 {[%clk 0:00:29]} 54. Kg3 {[%clk 0:00:40]}  Rd3+ {[%clk 0:00:23]} 55. f3 {[%clk 0:00:39]}  Rdd2 {[%clk 0:00:21]} 56. Rfxf5+ {[%clk 0:00:16]}  gxf5 {[%clk 0:00:20]} 57. Rxf5+ {[%clk 0:00:17]}  Kg6 {[%clk 0:00:20]} 58. Ra5 {[%clk 0:00:17]}  Rd7 {[%clk 0:00:18]} 59. f4 {[%clk 0:00:16]}  Ra3+ {[%clk 0:00:18]} 60. Kh4 {[%clk 0:00:16]}  Rd4 {[%clk 0:00:16]} 61. Ra6+ {[%clk 0:00:16]}  Kf7 {[%clk 0:00:16]} 62. Rxa7+ {[%clk 0:00:16]}  Ke6 {[%clk 0:00:16]} 63. f5+ {[%clk 0:00:16]}  Ke5 {[%clk 0:00:14]} 64. Rxh7 {[%clk 0:00:15]}  Raxa4 {[%clk 0:00:14]} 65. Rg7 {[%clk 0:00:14]}  Kf6 {[%clk 0:00:14]} 66. Rg6+ {[%clk 0:00:15]}  Kf7 {[%clk 0:00:15]} 67. Kh5 {[%clk 0:00:15]}  Ra8 {[%clk 0:00:12]} 68. Rh6 {[%clk 0:00:13]}  Rg8 {[%clk 0:00:12]} 69. g5 {[%clk 0:00:13]}  Rd5 {[%clk 0:00:12]} 70. Kg4 {[%clk 0:00:08]}  Rd1 {[%clk 0:00:10]} 71. Rh7+ {[%clk 0:00:03]}  Rg7 {[%clk 0:00:10]} 72. Rh6 {[%clk 0:00:04]}  Rg1+ {[%clk 0:00:10]} 73. Kf4 {[%clk 0:00:04]}  R1xg5 {[%clk 0:00:10]} 74. Ke5 {[%clk 0:00:05]}  Rg1 {[%clk 0:00:10]} 75. Rf6+ {[%clk 0:00:05]}  Ke7 {[%clk 0:00:10]} 76. Ra6 {[%clk 0:00:06]}  Re1+ {[%clk 0:00:07]} 77. Kf4 {[%clk 0:00:06]}  Kf8 {[%clk 0:00:07]} 78. Ra8+ {[%clk 0:00:06]}  Re8 {[%clk 0:00:06]} 79. Ra6 {[%clk 0:00:06]}  Rf7 {[%clk 0:00:07]} 80. Kg5 {[%clk 0:00:06]}  Ke7 {[%clk 0:00:07]} 81. Kg6 {[%clk 0:00:05]}  Rg8+ {[%clk 0:00:06]} 82. Kh6 {[%clk 0:00:04]}  Rf6+ {[%clk 0:00:06]} 83. Kh7 {[%clk 0:00:02]}  Rxa6 {[%clk 0:00:06]} 84. Kxg8 {[%clk 0:00:02]}  Kf6 {[%clk 0:00:07]} 85. Kh7 {[%clk 0:00:02]}  Kxf5 {[%clk 0:00:08]} 86. Kg7 {[%clk 0:00:02]}  Rb6 {[%clk 0:00:07]} 87. Kh7 {[%clk 0:00:03]}  Kg5 {[%clk 0:00:07]} 88. Kg7 {[%clk 0:00:04]}  Rb7+ {[%clk 0:00:08]} 89. Kg8 {[%clk 0:00:05]}  Kf6 {[%clk 0:00:08]} 90. Kh8 {[%clk 0:00:06]}  Kg6 {[%clk 0:00:08]} 91. Kg8 {[%clk 0:00:06]}  Rb8# {[%clk 0:00:09]} 0-1


[Site "https://www.chess.com"]